Workbook

Sheet Estimativa
A3: Quadro - 1 VALOR ANUAL MÁXIMO ESTIMADO PARA MANUTENÇÕES | R3: Guraita | S3: 7.84
A4: Unidade | B4: Ano de Inauguração | C4: Idade das Unidades (anos) | D4: Área do Terreno (m²) | E4: Área Construída (m²) | F4: CUB (R$/m²) | G4: Base de Calculo IPTU | H4: Valor do imóvel utilizado (R$) | I4: Valor estimado para manutenção - IN RFB nº 1700/2017 - (R$) | J4: Ano da Ultima Reforma | K4: Percentual anual de obsolescência do imóvel (%) | L4: Acréscimo anual sobre o valor de obsolescência do imóvel (R$) | M4: Valor anual máximo estimado para manutenção (R$) | R4: predio | S4: =179*2 -> 358
A5: 4ª/SR | B5: 1987 | C5: =2024-B5 -> 37 | D5: 10626.03 | E5: 2656.68 | F5: 2259.42 | G5: 10460110.69 | H5: =G5 -> 10460110.69 | I5: =ROUND(H5*4%,2) -> 418404.43 | J5: 2013 | K5: 0.015 | L5: =ROUND(H5*K5,2) -> 156901.66 | M5: =I5+L5 -> 575306.09 | R5: auditorio | S5: 283 | U5: =D8/10000 -> 67.431505
A6: 4ª/EPR | B6: 1975 | C6: =2024-B6 -> 49 | D6: 315 | E6: 285.62 | F6: 2136.33 | G6: 224000 | H6: =G6 -> 224000 | I6: =ROUND(H6*4%,2) -> 8960 | J6: 2020 | K6: 0.008 | L6: =ROUND(H6*K6,2) -> 1792 | M6: =I6+L6 -> 10752 | R6: alojamento | S6: 367 | U6: =U5*15000 -> 1011472.575
A7: 4ª/UEM | B7: 1986 | C7: 38 | D7: 31110.83 | E7: 2026.65 | F7: 1043.84 | G7: x | H7: =E7*F7+((D7-E7)/10000*12065.83) -> 2150590.813 | I7: 86023.63 | J7: 2019 | K7: 0.009 | L7: 19355.32 | M7: 105378.95 | R7: hipo | S7: 416
A8: 4ª/CIB | B8: 1983 | C8: 41 | D8: 674315.05 | E8: =S15 -> 3060.84 | F8: 1043.84 | G8: x | H8: =E8*F8+((D8-E8)/10000*12065.83) -> 4004951.144 | I8: 160198.05 | J8: 2013 | K8: 0.015 | L8: 60074.27 | M8: 220272.32 | R8: pisicna | S8: 343
A9: TOTAL ESTIMADO ANUAL DE MANUTENÇÃO | M9: =SUM(M5:M8) -> 911709.36 | R9: casa | S9: 460
R10: gaplão ração | S10: =12*35 -> 420
R11: captação | S11: =8*5 -> 40
A12: 1 – As fontes para se estabelecer o “Valor do imóvel (R$)” foram: Área Construída imóveis x CUB/m2 ou a base do de cálculo do IPTU/2024 | R12: galpão projeto amanha | S12: =15*19 -> 285
A13: 2 – O Percentual anual de obsolescência do imóvel (%) foi estabelecido com o seguinte critério: o mínimo corresponderia a 0,5%, sendo acrescido de 0,1% a cada ano entre a última reforma do imóvel e o atual exercício, limitado ao percentual de 1,5% ao ano | R13: casinha viveiro | S13: =9*9 -> 81
A14: 3 – A fórmula de cálculo para os itens abaixo são:
A15: 3.1 – “Valor estimado para manutenção - IN RFB nº 1700/2017 - (R$)”: “Valor do imóvel (R$)” x 4% | R15: total | S15: =SUM(S3:S13) -> 3060.84
A16: 3.2 – “Acréscimo anual sobre o valor de obsolescência do imóvel (R$)”: “Valor estimado para manutenção - IN RFB nº 1700/2017 - (R$)” x “Percentual anual de obsolescência do imóvel (%)”.
A17: 3.3 – “Valor anual máximo estimado para manutenção (R$)”: “Valor estimado para manutenção - IN RFB nº 1700/2017 - (R$)” + “Acréscimo anual sobre o valor de obsolescência do imóvel (R$)”
A18: 4 – Ressalta-se que os cálculos de cada Unidade foram realizados separadamente somente para esclarecer a metodologia para estimativa do valor total da contratação, não sendo de caráter restritivo em relação ao que poderá ser aplicado em cada Unidade quando houver necessidade de realização de obras/serviços. Em outras palavras, a 4ª SR/Codevasf poderá realizar obras/serviços objeto do Termo de Referência em qualquer Unidade em valor limitado ao total estimado do contrato.
A19: 5- Para o valor do 4ºCIB e da 4ºUEM, foi estimado que cada hectare custa R$12.065.83( Valor PPR/SR(SE)/SE/2022/MRT 6 – Litoral Norte e Baixo São Francisco (Valor Total do Imóvel - VTI). Além do CUB aplicado na área dos prédios.
A20: 6- Para o 4º CIB, foram inclusos os prédio do Galpão do Projeto Amanhã, Viveiro de Mudas, Auditório, Prédio da Captação, Guarita, Alojamento...
H26: =45+113+45 -> 203

Sheet Planilha
B3: CONTRATAÇÃO DE SERVIÇOS DE MANUTENÇÃO PREDIAL, PREVENTIVA E CORRETIVA, COM FORNECIMENTO DE MATERIAIS E MÃO-DE-OBRA, NAS EDIFICAÇÕES DA CODEVASF – 4ªSR, SITUADAS NOS MUNICÍPIOS DE ARACAJU, PROPRIÁ E NEÓPOLIS, NO ESTADO DE SERGIPE
H4: Data-base: | I4: 2024-10-01
H5: BDI: | I5: =BDI_serviços!C29 -> 0.2354
A6: PLANILHA ORÇAMENTÁRIA - RESUMO
A7: CATSERV | B7: DISCRIMINAÇÃO | C7: UNIDADE | D7: QUANTIDADE | E7: CUSTO TOTAL (CODEVASF) | F7: PREÇO TOTAL (CODEVASF) | G7: CUSTO TOTAL (CONTRATADA) | H7: PREÇO TOTAL (CONTRATADA) | I7: DESCONTO (%)
A8: 1627 | B8: Manutenção predial, preventiva e corretiva, descritos na tabela SINAPI/SE, nas edificações da Codevasf – 4ªSR, situadas nos municípios de Aracaju, Propriá e Neópolis, no estado de Sergipe | C8: un | D8: 1 | E8: =F8*100%/(100%+I5) -> 737987.1782 | F8: =Estimativa!M9 -> 911709.36

Sheet Manutenção
A2: =Planilha!B3 -> CONTRATAÇÃO DE SERVIÇOS DE MANUTENÇÃO PREDIAL, PREVENTIVA E CORRETIVA, COM FORNECIMENTO DE MATERIAIS E MÃO-DE-OBRA, NAS EDIFICAÇÕES DA CODEVASF – 4ªSR, SITUADAS NOS MUNICÍPIOS DE ARACAJU, PROPRIÁ E NEÓPOLIS, NO ESTADO DE SERGIPE
G3: Data-base: | H3: 2024-10-01
G4: BDI Serviços: | H4: 0.2354
G5: Prazo de Execução: | H5: 12 Meses
A6: PLANILHA ORÇAMENTÁRIA - MANUTENÇÕES PREVENTIVA E CORRETIVA
A7: ITEM | B7: DISCRIMINAÇÃO | C7: UNIDADE | D7: QUANTIDADE | E7: Valor Unitário | F7: Valor Unitário c/ BDI | G7: Valor Total | H7: Percentual (%)
A8: 1 | B8: Manutenção preventiva, conforme composição | C8: vb | D8: 1 | E8: =G8*100%/(100%+H4) -> 74377.02768 | F8: =ROUND(E8*$H$4+E8,2) -> 91885.38 | G8: ='Manutenção Preventiva'!H19 -> 91885.38 | H8: =G8/G10 -> 0.1007836313
A9: 2 | B9: Prestação de serviços de manutenção predial com fornecimento de peças, equipamentos, materiais e mão de obra, na forma estabelecida nas planilhas de serviços e insumos diversos descritos no Sistema Nacional de Pesquisa de Custos e Índices da Construção Civil (SINAPI-SE), nas edificações da 4ª Superintendência Regional da CODEVASF-4ªSR, conforme critérios e condições estabelecidos no Termo de Referência | C9: vb | D9: 1 | E9: =G9*100%/(100%+H4) -> 663610.1506 | F9: =ROUND(E9*$H$4+E9,2) -> 819823.98 | G9: =G12-G8 -> 819823.98 | H9: =G9/G10 -> 0.8992163687
G10: =SUM(G8:G9) -> 911709.36 | H10: =SUM(H8:H9) -> 1
G12: =Planilha!F8 -> 911709.36

Sheet Manutenção Preventiva
D1: Obra | E1: Bancos | G1: B.D.I. | I1: Encargos Sociais
D2: Manutenção Preventiva - 4ªSR - 2024 | E2: SINAPI - 08/2024 - Sergipe SBC - 10/2024 - Sergipe SICRO3 - 04/2024 - Sergipe ORSE - 06/2024 - Sergipe | G2: 23,54% | I2: Não Desonerado: Horista: 114,17% Mensalista: 71,63%
A3: Orçamento Sintético - COMPOSIÇÃO MANUTENÇÃO PREVENTIVA
A4: Item | B4: Código | C4: Banco | D4: Descrição | E4: Und | F4: Quant. | G4: Valor Unit | H4: Valor Unit com BDI | I4: Total | J4: Peso (%)
A5: 1 | D5: Plano de Manutenção | F5: 1 | H5: 11533.68 | I5: 11533.68 | J5: 0.1255224716 | K5: =F5*G5 -> 
A6: 1.1 | B6: CODEVASF 028 | C6: Próprio | D6: Realização de vistoria e elaboração de plano anual de manutenção das edificações | E6: UNID | F6: 4 | G6: 2334 | H6: 2883.42 | I6: 11533.68 | J6: 0.1255224716 | K6: =F6*G6 -> 9336
A7: 2 | D7: Manutenção Preventiva - Mão de obra | F7: 1 | H7: 74854.68 | I7: 74854.68 | J7: 0.8146527772
A8: 2.1 | B8: 90778 | C8: SINAPI | D8: ENGENHEIRO CIVIL DE OBRA PLENO COM ENCARGOS COMPLEMENTARES | E8: H | F8: 192 | G8: 125.89 | H8: 155.52 | I8: 29859.84 | J8: 0.3249683464 | K8: 24170.88
A9: 2.2 | B9: 90776 | C9: SINAPI | D9: ENCARREGADO GERAL COM ENCARGOS COMPLEMENTARES | E9: H | F9: 192 | G9: 31.92 | H9: 39.43 | I9: 7570.56 | J9: 0.08239134452 | K9: 6128.64
A10: 2.3 | B10: CODEVASF 333 | C10: Próprio | D10: Pedreiro, jornada de 8h/semana em horário comercial, para execução manutenções preventivas (inclusive ferramentas, com fornecimento de materiais básicos) | E10: Mês | F10: 12 | G10: 838.47 | H10: 1035.84 | I10: 12430.08 | J10: 0.1352781041 | K10: 10061.64
A11: 2.4 | B11: CODEVASF 334 | C11: Próprio | D11: Bombeiro/Encanador Hidraulico, jornada de 8h/semana em horário comercial, para execução manutenções preventivas (inclusive ferramentas, com fornecimento de materiais básicos). | E11: Mês | F11: 12 | G11: 825.9 | H11: 1020.31 | I11: 12243.72 | J11: 0.1332499251 | K11: 9910.8
A12: 2.5 | B12: CODEVASF 335 | C12: Próprio | D12: Eletricista, jornada de 8h/semana em horário comercial, para execução manutenções preventivas (inclusive ferramentas, com fornecimento de materiais básicos) | E12: Mês | F12: 12 | G12: 860.08 | H12: 1062.54 | I12: 12750.48 | J12: 0.1387650571 | K12: 10320.96
A13: 3 | D13: Limpezas Periodicas | F13: 1 | H13: 5497.02 | I13: 5497.02 | J13: 0.05982475123 | K13: =SUM(K5:K12) ->  | L13: =K13*23.54% -> 
A14: 3.1 | B14: CODEVASF 024 | C14: Próprio | D14: Limpeza e desinfecção química de reservatório de água | E14: und | F14: 12 | G14: 195.8 | H14: 241.89 | I14: 2902.68 | J14: 0.03159022687 | K14: =SUM(I5:I12) -> 172776.72
A15: 3.2 | B15: 12637 | C15: ORSE | D15: Limpeza de fossa até 5m3 | E15: un | F15: 6 | G15: 350 | H15: 432.39 | I15: 2594.34 | J15: 0.02823452436
F17: Total sem BDI | H17: 74378.52
F18: Total do BDI | H18: 17506.86
F19: Total Geral | H19: 91885.38
A21: _______________________________________________________________ Morgane de Aguiar Chagas Setor de Engenharia

Sheet Composição
C1: Composições Analíticas com Preço Unitário | E1: Bancos | G1: B.D.I. | I1: Encargos Sociais
C2: Manutenção Preventiva - 4ªSR - 2024 | E2: SINAPI - 08/2024 - Sergipe SBC - 10/2024 - Sergipe SICRO3 - 04/2024 - Sergipe ORSE - 06/2024 - Sergipe | G2: 23,54% | I2: Não Desonerado: Horista: 114,17% Mensalista: 71,63%
A3: Composições Analíticas com Preço Unitário
A4: Composições Principais
A5: 1.1 | B5: Código | C5: Banco | D5: Descrição | E5: Tipo | G5: Und | H5: Quant. | I5: Valor Unit | J5: Total
A6: Composição | B6: CODEVASF 028 | C6: Próprio | D6: Realização de vistoria e elaboração de plano anual de manutenção das edificações | E6: SEES - SERVIÇOS ESPECIAIS | G6: UNID | H6: 1 | I6: 2334 | J6: 2334
A7: Insumo | B7: 00002707 | C7: SINAPI | D7: ENGENHEIRO CIVIL DE OBRA PLENO (HORISTA) | E7: Mão de Obra | G7: H | H7: 8 | I7: 121.7 | J7: 973.6
A8: Insumo | B8: 00002350 | C8: SINAPI | D8: AUXILIAR DE ESCRITORIO (HORISTA) | E8: Mão de Obra | G8: H | H8: 8 | I8: 13.62 | J8: 108.96
A9: Insumo | B9: 00004083 | C9: SINAPI | D9: ENCARREGADO GERAL DE OBRAS (HORISTA) | E9: Mão de Obra | G9: H | H9: 4 | I9: 28.5 | J9: 114
A10: Insumo | B10: 00034783 | C10: SINAPI | D10: ENGENHEIRO ELETRICISTA | E10: Mão de Obra | G10: H | H10: 8 | I10: 142.18 | J10: 1137.44
E11: MO sem LS => | F11: 2334 | G11: LS => | H11: 0 | I11: MO com LS => | J11: 2334
E12: Valor do BDI => | F12: 549.42 | H12: Valor com BDI => | J12: 2883.42
A14: 2.1 | B14: Código | C14: Banco | D14: Descrição | E14: Tipo | G14: Und | H14: Quant. | I14: Valor Unit | J14: Total
A15: Composição | B15: 90778 | C15: SINAPI | D15: ENGENHEIRO CIVIL DE OBRA PLENO COM ENCARGOS COMPLEMENTARES | E15: SEDI - SERVIÇOS DIVERSOS | G15: H | H15: 1 | I15: 125.89 | J15: 125.89
A16: Composição Auxiliar | B16: 95403 | C16: SINAPI | D16: CURSO DE CAPACITAÇÃO PARA ENGENHEIRO CIVIL DE OBRA PLENO (ENCARGOS COMPLEMENTARES) - HORISTA | E16: SEDI - SERVIÇOS DIVERSOS | G16: H | H16: 1 | I16: 2.06 | J16: 2.06
A17: Insumo | B17: 00043462 | C17: SINAPI | D17: FERRAMENTAS - FAMILIA ENGENHEIRO CIVIL - HORISTA (ENCARGOS COMPLEMENTARES - COLETADO CAIXA) | E17: Equipamento | G17: H | H17: 1 | I17: 0.01 | J17: 0.01
A18: Insumo | B18: 00043486 | C18: SINAPI | D18: EPI - FAMILIA ENGENHEIRO CIVIL - HORISTA (ENCARGOS COMPLEMENTARES - COLETADO CAIXA) | E18: Equipamento | G18: H | H18: 1 | I18: 0.74 | J18: 0.74
A19: Insumo | B19: 00002707 | C19: SINAPI | D19: ENGENHEIRO CIVIL DE OBRA PLENO (HORISTA) | E19: Mão de Obra | G19: H | H19: 1 | I19: 121.7 | J19: 121.7
A20: Insumo | B20: 00037373 | C20: SINAPI | D20: SEGURO - HORISTA (COLETADO CAIXA - ENCARGOS COMPLEMENTARES) | E20: Taxas | G20: H | H20: 1 | I20: 0.04 | J20: 0.04
A21: Insumo | B21: 00037372 | C21: SINAPI | D21: EXAMES - HORISTA (COLETADO CAIXA - ENCARGOS COMPLEMENTARES) | E21: Material | G21: H | H21: 1 | I21: 1.34 | J21: 1.34
E22: MO sem LS => | F22: 123.76 | G22: LS => | H22: 0 | I22: MO com LS => | J22: 123.76
E23: Valor do BDI => | F23: 29.63 | H23: Valor com BDI => | J23: 155.52
A25: 2.2 | B25: Código | C25: Banco | D25: Descrição | E25: Tipo | G25: Und | H25: Quant. | I25: Valor Unit | J25: Total
A26: Composição | B26: 90776 | C26: SINAPI | D26: ENCARREGADO GERAL COM ENCARGOS COMPLEMENTARES | E26: SEDI - SERVIÇOS DIVERSOS | G26: H | H26: 1 | I26: 31.92 | J26: 31.92
A27: Composição Auxiliar | B27: 95401 | C27: SINAPI | D27: CURSO DE CAPACITAÇÃO PARA ENCARREGADO GERAL (ENCARGOS COMPLEMENTARES) - HORISTA | E27: SEDI - SERVIÇOS DIVERSOS | G27: H | H27: 1 | I27: 0.69 | J27: 0.69
A28: Insumo | B28: 00043463 | C28: SINAPI | D28: FERRAMENTAS - FAMILIA ENCARREGADO GERAL - HORISTA (ENCARGOS COMPLEMENTARES - COLETADO CAIXA) | E28: Equipamento | G28: H | H28: 1 | I28: 0.1 | J28: 0.1
A29: Insumo | B29: 00043487 | C29: SINAPI | D29: EPI - FAMILIA ENCARREGADO GERAL - HORISTA (ENCARGOS COMPLEMENTARES - COLETADO CAIXA) | E29: Equipamento | G29: H | H29: 1 | I29: 1.25 | J29: 1.25
A30: Insumo | B30: 00037372 | C30: SINAPI | D30: EXAMES - HORISTA (COLETADO CAIXA - ENCARGOS COMPLEMENTARES) | E30: Material | G30: H | H30: 1 | I30: 1.34 | J30: 1.34
A31: Insumo | B31: 00037373 | C31: SINAPI | D31: SEGURO - HORISTA (COLETADO CAIXA - ENCARGOS COMPLEMENTARES) | E31: Taxas | G31: H | H31: 1 | I31: 0.04 | J31: 0.04
A32: Insumo | B32: 00004083 | C32: SINAPI | D32: ENCARREGADO GERAL DE OBRAS (HORISTA) | E32: Mão de Obra | G32: H | H32: 1 | I32: 28.5 | J32: 28.5
E33: MO sem LS => | F33: 29.19 | G33: LS => | H33: 0 | I33: MO com LS => | J33: 29.19
E34: Valor do BDI => | F34: 7.51 | H34: Valor com BDI => | J34: 39.43
A36: 2.3 | B36: Código | C36: Banco | D36: Descrição | E36: Tipo | G36: Und | H36: Quant. | I36: Valor Unit | J36: Total
A37: Composição | B37: CODEVASF 333 | C37: Próprio | D37: Pedreiro, jornada de 8h/semana em horário comercial, para execução manutenções preventivas (inclusive ferramentas, com fornecimento de materiais básicos) | E37: SEOP - SERVIÇOS OPERACIONAIS | G37: Mês | H37: 1 | I37: 838.47 | J37: 838.47
A38: Composição Auxiliar | B38: 88309 | C38: SINAPI | D38: PEDREIRO COM ENCARGOS COMPLEMENTARES | E38: SEDI - SERVIÇOS DIVERSOS | G38: H | H38: 32 | I38: 26.15 | J38: 836.8
A39: Insumo | B39: 00034353 | C39: SINAPI | D39: ARGAMASSA COLANTE AC II | E39: Material | G39: KG | H39: 1 | I39: 1.67 | J39: 1.67
E40: MO sem LS => | F40: 626.56 | G40: LS => | H40: 0 | I40: MO com LS => | J40: 626.56
E41: Valor do BDI => | F41: 197.37 | H41: Valor com BDI => | J41: 1035.84
A43: 2.4 | B43: Código | C43: Banco | D43: Descrição | E43: Tipo | G43: Und | H43: Quant. | I43: Valor Unit | J43: Total
A44: Composição | B44: CODEVASF 334 | C44: Próprio | D44: Bombeiro/Encanador Hidraulico, jornada de 8h/semana em horário comercial, para execução manutenções preventivas (inclusive ferramentas, com fornecimento de materiais básicos). | E44: ASTU - ASSENTAMENTO DE TUBOS E PECAS | G44: Mês | H44: 1 | I44: 825.9 | J44: 825.9
A45: Composição Auxiliar | B45: 88267 | C45: SINAPI | D45: ENCANADOR OU BOMBEIRO HIDRÁULICO COM ENCARGOS COMPLEMENTARES | E45: SEDI - SERVIÇOS DIVERSOS | G45: H | H45: 32 | I45: 25.39 | J45: 812.48
A46: Insumo | B46: 00000119 | C46: SINAPI | D46: ADESIVO PLASTICO PARA PVC, BISNAGA COM 75 GR | E46: Material | G46: UN | H46: 1 | I46: 7.9 | J46: 7.9
A47: Insumo | B47: 00038383 | C47: SINAPI | D47: LIXA D'AGUA EM FOLHA, GRAO 100 | E47: Material | G47: UN | H47: 1 | I47: 2.52 | J47: 2.52
A48: Insumo | B48: 00003146 | C48: SINAPI | D48: FITA VEDA ROSCA EM ROLOS DE 18 MM X 10 M (L X C) | E48: Material | G48: UN | H48: 1 | I48: 3 | J48: 3
E49: MO sem LS => | F49: 624.32 | G49: LS => | H49: 0 | I49: MO com LS => | J49: 624.32
E50: Valor do BDI => | F50: 194.41 | H50: Valor com BDI => | J50: 1020.31
A52: 2.5 | B52: Código | C52: Banco | D52: Descrição | E52: Tipo | G52: Und | H52: Quant. | I52: Valor Unit | J52: Total
A53: Composição | B53: CODEVASF 335 | C53: Próprio | D53: Eletricista, jornada de 8h/semana em horário comercial, para execução manutenções preventivas (inclusive ferramentas, com fornecimento de materiais básicos) | E53: INEL - INSTALAÇÃO ELÉTRICA/ELETRIFICAÇÃO E ILUMINAÇÃO EXTERNA | G53: Mês | H53: 1 | I53: 860.08 | J53: 860.08
A54: Composição Auxiliar | B54: 88264 | C54: SINAPI | D54: ELETRICISTA COM ENCARGOS COMPLEMENTARES | E54: SEDI - SERVIÇOS DIVERSOS | G54: H | H54: 32 | I54: 26.5 | J54: 848
A55: Insumo | B55: 00021127 | C55: SINAPI | D55: FITA ISOLANTE ADESIVA ANTICHAMA, USO ATE 750 V, EM ROLO DE 19 MM X 5 M | E55: Material | G55: UN | H55: 2 | I55: 4.44 | J55: 8.88
A56: Insumo | B56: 00000404 | C56: SINAPI | D56: FITA ISOLANTE DE BORRACHA AUTOFUSAO, USO ATE 69 KV (ALTA TENSAO) | E56: Material | G56: M | H56: 2 | I56: 1.6 | J56: 3.2
E57: MO sem LS => | F57: 638.08 | G57: LS => | H57: 0 | I57: MO com LS => | J57: 638.08
E58: Valor do BDI => | F58: 202.46 | H58: Valor com BDI => | J58: 1062.54
A60: 3.1 | B60: Código | C60: Banco | D60: Descrição | E60: Tipo | G60: Und | H60: Quant. | I60: Valor Unit | J60: Total
A61: Composição | B61: CODEVASF 024 | C61: Próprio | D61: Limpeza e desinfecção química de reservatório de água | E61: INHI - INSTALAÇÕES HIDROS SANITÁRIAS | G61: und | H61: 1 | I61: 195.8 | J61: 195.8
A62: Insumo | B62: 615 | C62: ORSE | D62: Cloro líquido para limpeza e desinfecção | E62: Material | G62: l | H62: 3 | I62: 6.5 | J62: 19.5
A63: Insumo | B63: 00002696 | C63: SINAPI | D63: ENCANADOR OU BOMBEIRO HIDRAULICO (HORISTA) | E63: Mão de Obra | G63: H | H63: 5 | I63: 19.12 | J63: 95.6
A64: Insumo | B64: 00000012 | C64: SINAPI | D64: ESCOVA DE ACO, COM CABO, *4 X 15* FILEIRAS DE CERDAS | E64: Material | G64: UN | H64: 1 | I64: 11 | J64: 11
A65: Insumo | B65: 00000246 | C65: SINAPI | D65: AUXILIAR DE ENCANADOR OU BOMBEIRO HIDRAULICO (HORISTA) | E65: Mão de Obra | G65: H | H65: 5 | I65: 13.94 | J65: 69.7
E66: MO sem LS => | F66: 165.3 | G66: LS => | H66: 0 | I66: MO com LS => | J66: 165.3
E67: Valor do BDI => | F67: 46.09 | H67: Valor com BDI => | J67: 241.89
A69: 3.2 | B69: Código | C69: Banco | D69: Descrição | E69: Tipo | G69: Und | H69: Quant. | I69: Valor Unit | J69: Total
A70: Composição | B70: 12637 | C70: ORSE | D70: Limpeza de fossa até 5m3 | E70: Fossas Sépticas | G70: un | H70: 1 | I70: 350 | J70: 350
B71: Código | C71: Banco | D71: Descrição | E71: Tipo | G71: Und | H71: Quant. | I71: Valor Unit | J71: Total
A72: Insumo | B72: 13425 | C72: ORSE | D72: Limpeza de fossa até 5m3 | E72: Serviços | G72: un | H72: 1 | I72: 350,00 | J72: 350,00
A73: Detalhamento de Cálculo ORSE
B74: Código | C74: Banco | D74: Descrição | E74: Tipo | G74: Und | H74: Quant. | I74: Valor Unit | J74: Total
A75: Insumo | B75: 13425 | C75: ORSE | D75: Limpeza de fossa até 5m3 | E75: Serviços | G75: un | H75: 1 | I75: 350,00 | J75: 350,00
E76: MO sem LS => | F76: 0 | G76: LS => | H76: 0 | I76: MO com LS => | J76: 0
E77: Valor do BDI => | F77: 82.39 | H77: Valor com BDI => | J77: 432.39
A79: Composições Auxiliares
B80: Código | C80: Banco | D80: Descrição | E80: Tipo | G80: Und | H80: Quant. | I80: Valor Unit | J80: Total
A81: Composição | B81: 95332 | C81: SINAPI | D81: CURSO DE CAPACITAÇÃO PARA ELETRICISTA (ENCARGOS COMPLEMENTARES) - HORISTA | E81: SEDI - SERVIÇOS DIVERSOS | G81: H | H81: 1 | I81: 0.82 | J81: 0.82
A82: Insumo | B82: 00002436 | C82: SINAPI | D82: ELETRICISTA (HORISTA) | E82: Mão de Obra | G82: H | H82: 0.04297 | I82: 19.12 | J82: 0.82
E83: MO sem LS => | F83: 0.82 | G83: LS => | H83: 0 | I83: MO com LS => | J83: 0.82
E84: Valor do BDI => | F84: 0.19 | H84: Valor com BDI => | J84: 1.01
B86: Código | C86: Banco | D86: Descrição | E86: Tipo | G86: Und | H86: Quant. | I86: Valor Unit | J86: Total
A87: Composição | B87: 95335 | C87: SINAPI | D87: CURSO DE CAPACITAÇÃO PARA ENCANADOR OU BOMBEIRO HIDRÁULICO (ENCARGOS COMPLEMENTARES) - HORISTA | E87: SEDI - SERVIÇOS DIVERSOS | G87: H | H87: 1 | I87: 0.39 | J87: 0.39
A88: Insumo | B88: 00002696 | C88: SINAPI | D88: ENCANADOR OU BOMBEIRO HIDRAULICO (HORISTA) | E88: Mão de Obra | G88: H | H88: 0.0207 | I88: 19.12 | J88: 0.39
E89: MO sem LS => | F89: 0.39 | G89: LS => | H89: 0 | I89: MO com LS => | J89: 0.39
E90: Valor do BDI => | F90: 0.09 | H90: Valor com BDI => | J90: 0.48
B92: Código | C92: Banco | D92: Descrição | E92: Tipo | G92: Und | H92: Quant. | I92: Valor Unit | J92: Total
A93: Composição | B93: 95401 | C93: SINAPI | D93: CURSO DE CAPACITAÇÃO PARA ENCARREGADO GERAL (ENCARGOS COMPLEMENTARES) - HORISTA | E93: SEDI - SERVIÇOS DIVERSOS | G93: H | H93: 1 | I93: 0.69 | J93: 0.69
A94: Insumo | B94: 00004083 | C94: SINAPI | D94: ENCARREGADO GERAL DE OBRAS (HORISTA) | E94: Mão de Obra | G94: H | H94: 0.02442 | I94: 28.5 | J94: 0.69
E95: MO sem LS => | F95: 0.69 | G95: LS => | H95: 0 | I95: MO com LS => | J95: 0.69
E96: Valor do BDI => | F96: 0.16 | H96: Valor com BDI => | J96: 0.85
B98: Código | C98: Banco | D98: Descrição | E98: Tipo | G98: Und | H98: Quant. | I98: Valor Unit | J98: Total
A99: Composição | B99: 95403 | C99: SINAPI | D99: CURSO DE CAPACITAÇÃO PARA ENGENHEIRO CIVIL DE OBRA PLENO (ENCARGOS COMPLEMENTARES) - HORISTA | E99: SEDI - SERVIÇOS DIVERSOS | G99: H | H99: 1 | I99: 2.06 | J99: 2.06
A100: Insumo | B100: 00002707 | C100: SINAPI | D100: ENGENHEIRO CIVIL DE OBRA PLENO (HORISTA) | E100: Mão de Obra | G100: H | H100: 0.01699 | I100: 121.7 | J100: 2.06
E101: MO sem LS => | F101: 2.06 | G101: LS => | H101: 0 | I101: MO com LS => | J101: 2.06
E102: Valor do BDI => | F102: 0.48 | H102: Valor com BDI => | J102: 2.54
B104: Código | C104: Banco | D104: Descrição | E104: Tipo | G104: Und | H104: Quant. | I104: Valor Unit | J104: Total
A105: Composição | B105: 95371 | C105: SINAPI | D105: CURSO DE CAPACITAÇÃO PARA PEDREIRO (ENCARGOS COMPLEMENTARES) - HORISTA | E105: SEDI - SERVIÇOS DIVERSOS | G105: H | H105: 1 | I105: 0.46 | J105: 0.46
A106: Insumo | B106: 00004750 | C106: SINAPI | D106: PEDREIRO (HORISTA) | E106: Mão de Obra | G106: H | H106: 0.02442 | I106: 19.12 | J106: 0.46
E107: MO sem LS => | F107: 0.46 | G107: LS => | H107: 0 | I107: MO com LS => | J107: 0.46
E108: Valor do BDI => | F108: 0.1 | H108: Valor com BDI => | J108: 0.56
B110: Código | C110: Banco | D110: Descrição | E110: Tipo | G110: Und | H110: Quant. | I110: Valor Unit | J110: Total
A111: Composição | B111: 88264 | C111: SINAPI | D111: ELETRICISTA COM ENCARGOS COMPLEMENTARES | E111: SEDI - SERVIÇOS DIVERSOS | G111: H | H111: 1 | I111: 26.5 | J111: 26.5
A112: Composição Auxiliar | B112: 95332 | C112: SINAPI | D112: CURSO DE CAPACITAÇÃO PARA ELETRICISTA (ENCARGOS COMPLEMENTARES) - HORISTA | E112: SEDI - SERVIÇOS DIVERSOS | G112: H | H112: 1 | I112: 0.82 | J112: 0.82
A113: Insumo | B113: 00043460 | C113: SINAPI | D113: FERRAMENTAS - FAMILIA ELETRICISTA - HORISTA (ENCARGOS COMPLEMENTARES - COLETADO CAIXA) | E113: Equipamento | G113: H | H113: 1 | I113: 0.85 | J113: 0.85
A114: Insumo | B114: 00037370 | C114: SINAPI | D114: ALIMENTACAO - HORISTA (COLETADO CAIXA - ENCARGOS COMPLEMENTARES) | E114: Material | G114: H | H114: 1 | I114: 2.39 | J114: 2.39
A115: Insumo | B115: 00043484 | C115: SINAPI | D115: EPI - FAMILIA ELETRICISTA - HORISTA (ENCARGOS COMPLEMENTARES - COLETADO CAIXA) | E115: Equipamento | G115: H | H115: 1 | I115: 1.2 | J115: 1.2
A116: Insumo | B116: 00002436 | C116: SINAPI | D116: ELETRICISTA (HORISTA) | E116: Mão de Obra | G116: H | H116: 1 | I116: 19.12 | J116: 19.12
A117: Insumo | B117: 00037373 | C117: SINAPI | D117: SEGURO - HORISTA (COLETADO CAIXA - ENCARGOS COMPLEMENTARES) | E117: Taxas | G117: H | H117: 1 | I117: 0.04 | J117: 0.04
A118: Insumo | B118: 00037372 | C118: SINAPI | D118: EXAMES - HORISTA (COLETADO CAIXA - ENCARGOS COMPLEMENTARES) | E118: Material | G118: H | H118: 1 | I118: 1.34 | J118: 1.34
A119: Insumo | B119: 00037371 | C119: SINAPI | D119: TRANSPORTE - HORISTA (COLETADO CAIXA - ENCARGOS COMPLEMENTARES) | E119: Serviços | G119: H | H119: 1 | I119: 0.74 | J119: 0.74
E120: MO sem LS => | F120: 19.94 | G120: LS => | H120: 0 | I120: MO com LS => | J120: 19.94
E121: Valor do BDI => | F121: 6.23 | H121: Valor com BDI => | J121: 32.73
B123: Código | C123: Banco | D123: Descrição | E123: Tipo | G123: Und | H123: Quant. | I123: Valor Unit | J123: Total
A124: Composição | B124: 88267 | C124: SINAPI | D124: ENCANADOR OU BOMBEIRO HIDRÁULICO COM ENCARGOS COMPLEMENTARES | E124: SEDI - SERVIÇOS DIVERSOS | G124: H | H124: 1 | I124: 25.39 | J124: 25.39
A125: Composição Auxiliar | B125: 95335 | C125: SINAPI | D125: CURSO DE CAPACITAÇÃO PARA ENCANADOR OU BOMBEIRO HIDRÁULICO (ENCARGOS COMPLEMENTARES) - HORISTA | E125: SEDI - SERVIÇOS DIVERSOS | G125: H | H125: 1 | I125: 0.39 | J125: 0.39
A126: Insumo | B126: 00037372 | C126: SINAPI | D126: EXAMES - HORISTA (COLETADO CAIXA - ENCARGOS COMPLEMENTARES) | E126: Material | G126: H | H126: 1 | I126: 1.34 | J126: 1.34
A127: Insumo | B127: 00043461 | C127: SINAPI | D127: FERRAMENTAS - FAMILIA ENCANADOR - HORISTA (ENCARGOS COMPLEMENTARES - COLETADO CAIXA) | E127: Equipamento | G127: H | H127: 1 | I127: 0.31 | J127: 0.31
A128: Insumo | B128: 00002696 | C128: SINAPI | D128: ENCANADOR OU BOMBEIRO HIDRAULICO (HORISTA) | E128: Mão de Obra | G128: H | H128: 1 | I128: 19.12 | J128: 19.12
A129: Insumo | B129: 00043485 | C129: SINAPI | D129: EPI - FAMILIA ENCANADOR - HORISTA (ENCARGOS COMPLEMENTARES - COLETADO CAIXA) | E129: Equipamento | G129: H | H129: 1 | I129: 1.06 | J129: 1.06
A130: Insumo | B130: 00037371 | C130: SINAPI | D130: TRANSPORTE - HORISTA (COLETADO CAIXA - ENCARGOS COMPLEMENTARES) | E130: Serviços | G130: H | H130: 1 | I130: 0.74 | J130: 0.74
A131: Insumo | B131: 00037373 | C131: SINAPI | D131: SEGURO - HORISTA (COLETADO CAIXA - ENCARGOS COMPLEMENTARES) | E131: Taxas | G131: H | H131: 1 | I131: 0.04 | J131: 0.04
A132: Insumo | B132: 00037370 | C132: SINAPI | D132: ALIMENTACAO - HORISTA (COLETADO CAIXA - ENCARGOS COMPLEMENTARES) | E132: Material | G132: H | H132: 1 | I132: 2.39 | J132: 2.39
E133: MO sem LS => | F133: 19.51 | G133: LS => | H133: 0 | I133: MO com LS => | J133: 19.51
E134: Valor do BDI => | F134: 5.97 | H134: Valor com BDI => | J134: 31.36
B136: Código | C136: Banco | D136: Descrição | E136: Tipo | G136: Und | H136: Quant. | I136: Valor Unit | J136: Total
A137: Composição | B137: 88309 | C137: SINAPI | D137: PEDREIRO COM ENCARGOS COMPLEMENTARES | E137: SEDI - SERVIÇOS DIVERSOS | G137: H | H137: 1 | I137: 26.15 | J137: 26.15
A138: Composição Auxiliar | B138: 95371 | C138: SINAPI | D138: CURSO DE CAPACITAÇÃO PARA PEDREIRO (ENCARGOS COMPLEMENTARES) - HORISTA | E138: SEDI - SERVIÇOS DIVERSOS | G138: H | H138: 1 | I138: 0.46 | J138: 0.46
A139: Insumo | B139: 00037370 | C139: SINAPI | D139: ALIMENTACAO - HORISTA (COLETADO CAIXA - ENCARGOS COMPLEMENTARES) | E139: Material | G139: H | H139: 1 | I139: 2.39 | J139: 2.39
A140: Insumo | B140: 00004750 | C140: SINAPI | D140: PEDREIRO (HORISTA) | E140: Mão de Obra | G140: H | H140: 1 | I140: 19.12 | J140: 19.12
A141: Insumo | B141: 00043489 | C141: SINAPI | D141: EPI - FAMILIA PEDREIRO - HORISTA (ENCARGOS COMPLEMENTARES - COLETADO CAIXA) | E141: Equipamento | G141: H | H141: 1 | I141: 1.24 | J141: 1.24
A142: Insumo | B142: 00043465 | C142: SINAPI | D142: FERRAMENTAS - FAMILIA PEDREIRO - HORISTA (ENCARGOS COMPLEMENTARES - COLETADO CAIXA) | E142: Equipamento | G142: H | H142: 1 | I142: 0.82 | J142: 0.82
A143: Insumo | B143: 00037373 | C143: SINAPI | D143: SEGURO - HORISTA (COLETADO CAIXA - ENCARGOS COMPLEMENTARES) | E143: Taxas | G143: H | H143: 1 | I143: 0.04 | J143: 0.04
A144: Insumo | B144: 00037371 | C144: SINAPI | D144: TRANSPORTE - HORISTA (COLETADO CAIXA - ENCARGOS COMPLEMENTARES) | E144: Serviços | G144: H | H144: 1 | I144: 0.74 | J144: 0.74
A145: Insumo | B145: 00037372 | C145: SINAPI | D145: EXAMES - HORISTA (COLETADO CAIXA - ENCARGOS COMPLEMENTARES) | E145: Material | G145: H | H145: 1 | I145: 1.34 | J145: 1.34
E146: MO sem LS => | F146: 19.58 | G146: LS => | H146: 0 | I146: MO com LS => | J146: 19.58
E147: Valor do BDI => | F147: 6.15 | H147: Valor com BDI => | J147: 32.3
F150: Total sem BDI | H150: 74378.52
F151: Total do BDI | H151: 17506.86
F152: Total Geral | H152: 91885.38

Sheet BDI_materiais
A1: =Planilha!B3 -> CONTRATAÇÃO DE SERVIÇOS DE MANUTENÇÃO PREDIAL, PREVENTIVA E CORRETIVA, COM FORNECIMENTO DE MATERIAIS E MÃO-DE-OBRA, NAS EDIFICAÇÕES DA CODEVASF – 4ªSR, SITUADAS NOS MUNICÍPIOS DE ARACAJU, PROPRIÁ E NEÓPOLIS, NO ESTADO DE SERGIPE
A2: DOCUMENTO: DETALHAMENTO DA BONIFICAÇÃO E DESPESAS INDIRETAS - MATERIAIS
A4: FÓRMULA APLICADA
A6: BDI = { [ ( 1 + AC / 100 + R / 100 + SG/100 ) . ( 1 + DF / 100 ) . ( 1 + L / 100 ) / ( 1 - I / 100 ) ] - 1 } . 100
A8: ONDE:
A9: BDI = | B9: Bonificação e Despesas Indiretas
A10: AC = | B10: Administração Central
A11: SG= | B11: Seguros e garantias
A12: DF = | B12: Despesas Financeiras
A13: R = | B13: Riscos
A14: L = | B14: Lucro
A15: I = | B15: Impostos
A16: FORNECIMENTO DE MATERIAIS
A18: ITEM | B18: DESCRIÇÃO | C18: PERCENTUAIS (%)
A19: 1 | B19: Administração Central | C19: 3.45
A20: 2 | B20: Seguros e garantias | C20: 0.48
A21: 3 | B21: Riscos | C21: 0.85
A22: 4 | B22: Despesas Financeiras | C22: 0.85
A23: 5 | B23: Lucro | C23: 5.11
A24: 6 | B24: Impostos | C24: =SUM(C25:C28) -> 3.65
A25: 6.1 | B25: PIS | C25: 0.65
A26: 6.2 | B26: COFINS | C26: 3
A27: 6.3 | B27: ISS | C27: 0
A28: 6.4 | B28: IPRB | C28: 0
A29: BDI | C29: =ROUND((((1+C19/100+C20/100+C21/100)*(1+C22/100)*(1+C23/100))/(1-C24/100))-1,4) -> 0.1528

Sheet BDI_serviços
A1: =Planilha!B3 -> CONTRATAÇÃO DE SERVIÇOS DE MANUTENÇÃO PREDIAL, PREVENTIVA E CORRETIVA, COM FORNECIMENTO DE MATERIAIS E MÃO-DE-OBRA, NAS EDIFICAÇÕES DA CODEVASF – 4ªSR, SITUADAS NOS MUNICÍPIOS DE ARACAJU, PROPRIÁ E NEÓPOLIS, NO ESTADO DE SERGIPE
A2: DOCUMENTO: DETALHAMENTO DA BONIFICAÇÃO E DESPESAS INDIRETAS - SERVIÇOS
A4: FÓRMULA APLICADA
A6: BDI = { [ ( 1 + AC / 100 + R / 100 + SG/100 ) . ( 1 + DF / 100 ) . ( 1 + L / 100 ) / ( 1 - I / 100 ) ] - 1 } . 100
A8: ONDE:
A9: BDI = | B9: Bonificação e Despesas Indiretas
A10: AC = | B10: Administração Central
A11: SG= | B11: Seguros e garantias
A12: DF = | B12: Despesas Financeiras
A13: R = | B13: Riscos
A14: L = | B14: Lucro
A15: I = | B15: Impostos
A16: EXECUÇÃO DE SERVIÇOS
A18: ITEM | B18: DESCRIÇÃO | C18: PERCENTUAIS (%)
A19: 1 | B19: Administração Central | C19: 3.91
A20: 2 | B20: Seguros e garantias | C20: 0.8
A21: 3 | B21: Riscos | C21: 0.97
A22: 4 | B22: Despesas Financeiras | C22: 0.59
A23: 5 | B23: Lucro | C23: 6.16
A24: 6 | B24: Impostos | C24: =SUM(C25:C28) -> 8.65
A25: 6.1 | B25: PIS | C25: 0.65
A26: 6.2 | B26: COFINS | C26: 3
A27: 6.3 | B27: ISS | C27: 5
A28: 6.4 | B28: IPRB | C28: 0
A29: BDI | C29: =ROUND((((1+C19/100+C20/100+C21/100)*(1+C22/100)*(1+C23/100))/(1-C24/100))-1,4) -> 0.2354

Sheet Encargos Sociais
A1: =Planilha!B3 -> CONTRATAÇÃO DE SERVIÇOS DE MANUTENÇÃO PREDIAL, PREVENTIVA E CORRETIVA, COM FORNECIMENTO DE MATERIAIS E MÃO-DE-OBRA, NAS EDIFICAÇÕES DA CODEVASF – 4ªSR, SITUADAS NOS MUNICÍPIOS DE ARACAJU, PROPRIÁ E NEÓPOLIS, NO ESTADO DE SERGIPE
A2: DETALHAMENTO DOS ENCARGOS SOCIAS - SEM DESONERAÇÃO
A4: DISCRIMINAÇÃO | C4: Horista | D4: Mensalista
C5: % | D5: %
A6: A | B6: ENCARGOS SOCIAIS BÁSICOS
A7: A1 | B7: INSS | C7: 0.2 | D7: 0.2
A8: A2 | B8: SESI | C8: 0.015 | D8: 0.015
A9: A3 | B9: SENAI | C9: 0.01 | D9: 0.01
A10: A4 | B10: INCRA | C10: 0.002 | D10: 0.002
A11: A5 | B11: SEBRAE | C11: 0.006 | D11: 0.006
A12: A6 | B12: SALÁRIO EDUCAÇÃO | C12: 0.025 | D12: 0.025
A13: A7 | B13: SEGURO CONTRA ACIDENTE DE TRABALHO | C13: 0.03 | D13: 0.03
A14: A8 | B14: FGTS | C14: 0.08 | D14: 0.08
A15: A9 | B15: SECONCI | C15: 0.01 | D15: 0.01
A16: SUBTOTAL DE "A" | C16: =SUM(C7:C15) -> 0.378 | D16: =SUM(D7:D15) -> 0.378
A18: B | B18: ENCARGOS SOCIAIS QUE RECEBEM INCIDÊNCIA DE "A"
A19: B1 | B19: Repouso Semanal Remunerado | C19: 0.1792
A20: B2 | B20: Feriados | C20: 0.0395
A21: B3 | B21: Auxílio-Enfermidade | C21: 0.009 | D21: 0.0069
A22: B4 | B22: 13º Salário | C22: 0.108 | D22: 0.0833
A23: B5 | B23: Licença Paternidade | C23: 0.0008 | D23: 0.0006
A24: B6 | B24: Faltas Justificadas | C24: 0.0072 | D24: 0.0056
A25: B7 | B25: Dias de Chuvas | C25: 0.0172 | D25: 0
A26: B8 | B26: Auxílio Acidente de Trabalho | C26: 0.0012 | D26: 0.0009
A27: B9 | B27: Férias Gozadas | C27: 0.0809 | D27: 0.0624
A28: B10 | B28: Salário Maternidade | C28: 0.0003 | D28: 0.0002
A29: SUBTOTAL DE "B" | C29: =SUM(C19:C28) -> 0.4433 | D29: =SUM(D19:D28) -> 0.1599
A31: C | B31: ENCENCARGOS SOCIAIS QUE NÃO RECEBEM INCIDÊNCIA DE "A"
A32: C1 | B32: Aviso Prévio Indenizado | C32: 0.0481 | D32: 0.0371
A33: C2 | B33: Aviso Prévio Trabalhado | C33: 0.0011 | D33: 0.0009
A34: C3 | B34: Férias Indenizadas | C34: 0.0486 | D34: 0.0375
A35: C4 | B35: Depósito Rescisão Sem Justa Causa | C35: 0.0467 | D35: 0.0361
A36: C5 | B36: Indenização Adicional | C36: 0.004 | D36: 0.0031
A37: SUBTOTAL DE "C" | C37: =SUM(C32:C36) -> 0.1485 | D37: =SUM(D32:D36) -> 0.1147
A39: D | B39: REINCIDÊNCIAS
A40: D1 | B40: Reincidência de Grupo A sobre Grupo B | C40: 0.1676 | D40: 0.0604
A41: D2 | B41: Reincidência de Grupo A sobre Aviso Prévio Trabalhado e Reincidência do FGTS sobre Aviso Prévio Indenizado | C41: 0.0043 | D41: 0.0033
A42: SUBTOTAL DE "D" | C42: =SUM(C40:C41) -> 0.1719 | D42: =SUM(D40:D41) -> 0.0637
A44: TOTAIS DE ENCARGOS SOCIAIS | C44: =C16+C29+C37+C42 -> 1.1417 | D44: =D16+D29+D37+D42 -> 0.7163
